bitfinex/quotes_SOLUSD_20220101
["timestamp","ask_amount","ask_price","bid_price","bid_amount"]
[1640998582350,2.593395,172.52,172.45,8.6979]
[1640998584350,2.333395,172.52,172.45,8.6979]
[1640998585649,2.593395,172.52,172.45,8.6979]
[1640998586550,3.093395,172.52,172.45,8.6979]
[1640998586952,2.593395,172.52,172.45,8.6979]
[1640998587453,3.093395,172.52,172.45,8.6979]
[1640998588252,2.593395,172.52,172.45,8.6979]
[1640998591778,2.333395,172.52,172.45,8.6979]
[1640998593477,2.593395,172.52,172.45,8.6979]
[1640998599485,3.093395,172.52,172.45,8.6979]
[1640998600095,2.593395,172.52,172.45,8.6979]
[1640998611301,2.333395,172.52,172.45,8.6979]
[1640998612299,2.333395,172.52,172.45,9.9722]
[1640998612501,2.593395,172.52,172.45,9.9722]
[1640998614004,3.093395,172.52,172.45,9.9722]
[1640998616812,3.093395,172.52,172.45,8.6979]
[1640998617412,11.792695,172.52,172.43,8.6989]
[1640998617630,11.792695,172.52,172.41,75.919]
[1640998618233,1.2262,172.51,172.41,75.919]
[1640998618533,1.9862,172.51,172.43,8.6994]
[1640998618732,1.4862,172.51,172.43,8.6994]
[1640998618931,1.9862,172.51,172.43,8.6994]
[1640998619132,1.4862,172.51,172.43,8.6994]
[1640998619532,1.2262,172.51,172.43,8.6994]
[1640998619933,1.2262,172.51,172.43,8.9594]
[1640998621033,2.333395,172.52,172.43,8.9594]
[1640998621233,1.65059696,172.59,172.43,16.06109368]
[1640998621433,1.65059696,172.59,172.51,8.6927]
[1640998621634,72.6211,172.64,172.52,24.38396615]
[1640998621837,1.299,172.63,172.52,24.38396615]
[1640998622434,1.799,172.63,172.57,8.6927]
[1640998622634,1.299,172.63,172.57,8.6927]
[1640998622835,3.632395,172.63,172.57,8.6927]
[1640998623235,3.632395,172.63,172.53,28.9736]
[1640998624044,3.892395,172.63,172.53,28.9736]
[1640998624635,3.632395,172.63,172.57,8.6927]
[1640998624836,4.132395,172.63,172.57,8.6927]
[1640998626038,4.392395,172.63,172.57,8.6927]
[1640998626835,13.085495,172.63,172.57,8.6927]
[1640998627235,13.085495,172.63,172.53,28.9736]
[1640998628541,4.392395,172.63,172.57,8.6927]
[1640998630346,4.392395,172.63,172.53,28.9736]
[1640998630543,4.392395,172.63,172.47,1.267]
[1640998630544,13.085495,172.63,172.47,1.267]
[1640998630744,13.085495,172.63,172.47,1.527]
[1640998631445,13.085495,172.63,172.48,27.81708957]
[1640998631744,13.085495,172.63,172.52,8.6944]
[1640998632547,13.085495,172.63,172.49,8.6964]
[1640998632749,13.085495,172.63,172.46,77.667]
[1640998632947,92.750495,172.63,172.46,77.667]
[1640998633148,92.750495,172.63,172.46,79.09369368]
[1640998633349,92.750495,172.63,172.47,29.26237317]
[1640998633750,92.750495,172.63,172.52,8.6952]
[1640998636054,92.490495,172.63,172.52,8.6952]
[1640998636654,94.12812343,172.63,172.52,8.6952]
[1640998637055,92.490495,172.63,172.52,8.6952]
[1640998637857,83.797395,172.63,172.52,8.6952]
[1640998638056,4.132395,172.63,172.52,8.9552]
[1640998639255,4.132395,172.63,172.52,8.6952]
[1640998640058,4.392395,172.63,172.52,8.6952]
[1640998641264,13.086195,172.63,172.52,8.6952]
[1640998645862,12.826195,172.63,172.52,8.6952]
[1640998648064,13.086195,172.63,172.52,8.6952]
[1640998653192,12.826195,172.63,172.52,8.6952]
[1640998654490,13.086195,172.63,172.52,8.6952]
[1640998656090,14.72382343,172.63,172.52,8.6952]
[1640998656992,13.086195,172.63,172.52,8.6952]
[1640998658094,14.72382343,172.63,172.52,8.6952]
[1640998660998,13.086195,172.63,172.52,8.6952]
[1640998661199,12.826195,172.63,172.52,8.6952]
[1640998661397,4.132395,172.63,172.52,8.9552]
[1640998661800,4.132395,172.63,172.53,1.3455]
[1640998661999,4.132395,172.63,172.56,8.693]
[1640998662500,4.392395,172.63,172.56,8.693]
[1640998663001,13.085595,172.63,172.56,8.693]
[1640998664601,12.825595,172.63,172.56,8.693]
[1640998664802,4.132395,172.63,172.56,8.693]
[1640998665604,4.132395,172.63,172.55,8.6938]
[1640998666007,4.392395,172.63,172.55,8.6938]
[1640998666606,13.085695,172.63,172.55,8.6938]
[1640998669812,4.392395,172.63,172.55,8.6938]
[1640998670012,4.132395,172.63,172.55,8.6938]
[1640998671115,12.825495,172.63,172.55,8.6938]
[1640998671315,13.085495,172.63,172.55,8.6938]
[1640998675224,13.085495,172.63,172.55,10.0235]
[1640998681350,13.085495,172.63,172.55,1.3297]
[1640998682654,13.085495,172.63,172.55,10.0234]
[1640998689362,13.085495,172.63,172.55,1.3297]
[1640998693569,12.825495,172.63,172.55,1.3297]
[1640998693770,11.526495,172.63,172.5,79.2894]
[1640998694071,8.6945,172.59,172.51,1.2327]
[1640998694270,22.52990835,172.58,172.51,1.2327]
[1640998694570,23.02990835,172.58,172.51,1.2327]
[1640998695070,23.28990835,172.58,172.53,8.6945]
[1640998695470,31.98490835,172.58,172.51,1.2327]
[1640998695971,31.48490835,172.58,172.51,1.2327]
[1640998696173,31.48490835,172.58,172.52,8.6946]
[1640998696397,22.52990835,172.58,172.51,1.2327]
[1640998696773,23.02990835,172.58,172.51,1.2327]
[1640998697572,23.02990835,172.58,172.53,8.6944]
[1640998697974,23.28990835,172.58,172.53,8.6944]
[1640998698372,22.78990835,172.58,172.53,8.6944]
[1640998698774,22.78990835,172.58,172.52,8.6949]
[1640998698977,23.28990835,172.58,172.52,8.6949]
[1640998699175,31.98500835,172.58,172.51,1.2327]
[1640998700077,0.76,172.58,172.51,9.928]
[1640998700281,0.26,172.58,172.51,9.928]
[1640998700480,9.4545,172.59,172.51,9.928]
[1640998701084,37.93735948,172.59,172.51,9.928]
[1640998701482,37.67735948,172.59,172.51,9.928]
[1640998702883,37.93735948,172.59,172.51,9.928]
[1640998706509,37.67735948,172.59,172.51,9.928]
[1640998708308,37.93735948,172.59,172.51,9.928]
[1640998709512,37.93735948,172.59,172.51,1.2327]
[1640998711712,37.93735948,172.59,172.49,8.6964]
[1640998711914,1.38650784,172.58,172.47,1.2695]
[1640998712113,8.698,172.53,172.47,1.2695]
[1640998712312,8.698,172.53,172.41,1.42669368]
[1640998712511,9.458,172.53,172.41,2.70669368]
[1640998712714,25.31015825,172.52,172.45,8.6985]
[1640998713013,26.07015825,172.52,172.41,2.70669368]
[1640998713212,25.57015825,172.52,172.41,1.42669368]
[1640998713415,0.26,172.52,172.41,1.42669368]
[1640998713614,0.26,172.52,172.42,1.2476]
[1640998713813,10.0024,172.56,172.49,8.6964]
[1640998714016,10.7624,172.56,172.49,8.6964]
[1640998714615,24.28969092,172.55,172.49,8.6964]
[1640998715015,25.04969092,172.55,172.49,8.6964]
[1640998715416,0.76,172.55,172.49,8.6964]
[1640998715617,1.5654,172.56,172.49,8.6964]
[1640998716116,2.0654,172.56,172.49,8.6964]
[1640998716716,10.7619,172.56,172.49,8.6964]
[1640998717118,38.96051669,172.56,172.49,8.6964]
[1640998717918,30.26401669,172.56,172.49,8.6964]
[1640998719123,29.76401669,172.56,172.49,8.6964]
[1640998719322,30.26401669,172.56,172.49,8.6964]
[1640998719719,29.76401669,172.56,172.49,8.6964]
[1640998719919,30.26401669,172.56,172.49,8.6964]
[1640998720724,29.76401669,172.56,172.49,8.6964]
[1640998721124,30.26401669,172.56,172.49,8.6964]
[1640998721524,2.0654,172.56,172.49,8.6964]
[1640998721727,1.8054,172.56,172.49,8.6964]
[1640998721928,1.3054,172.56,172.49,8.6964]
[1640998722525,1.8054,172.56,172.49,8.6964]
[1640998723127,2.0654,172.56,172.49,8.6964]
[1640998724427,1.5654,172.56,172.49,8.6964]
[1640998724827,2.0654,172.56,172.49,8.6964]
[1640998725330,77.6113,172.58,172.49,8.6964]
[1640998725531,78.8752,172.58,172.49,8.6964]
[1640998725932,79.3752,172.58,172.49,8.6964]
[1640998726331,78.8752,172.58,172.49,10.12309368]
[1640998726534,79.1352,172.58,172.49,10.12309368]
[1640998726735,79.6352,172.58,172.49,10.12309368]
[1640998727133,79.1352,172.58,172.49,10.12309368]
[1640998727535,1.5239,172.58,172.49,10.12309368]
[1640998728536,1.5239,172.58,172.5,1.2791]
[1640998728738,1.5239,172.58,172.54,8.6939]
[1640998729037,0.26,172.58,172.54,8.6939]
[1640998729543,17.677,172.61,172.54,8.6939]
[1640998730036,9.4829,172.61,172.54,8.6939]
[1640998730255,8.9829,172.61,172.54,8.6939]
[1640998730456,8.7229,172.61,172.54,8.6939]
[1640998730857,9.2229,172.61,172.54,8.6939]
[1640998731160,8.7229,172.61,172.54,8.6939]
[1640998731762,9.2229,172.61,172.54,8.6939]
[1640998731965,8.7229,172.61,172.54,8.6939]
[1640998733063,9.2229,172.61,172.54,8.6939]
[1640998733464,9.4829,172.61,172.54,8.6939]
[1640998734071,0.76,172.61,172.54,8.6939]
[1640998734272,2.0301,172.62,172.54,8.6939]
[1640998734573,10.2239,172.62,172.54,8.6939]
[1640998734769,10.7239,172.62,172.54,8.6939]
[1640998737672,10.2239,172.62,172.54,8.6939]
[1640998737872,10.7239,172.62,172.54,8.6939]
[1640998738374,10.2239,172.62,172.54,8.6939]
[1640998738873,10.7239,172.62,172.54,8.6939]
[1640998740074,10.2239,172.62,172.54,8.6939]
[1640998740576,10.7239,172.62,172.54,8.6939]
[1640998741177,10.4639,172.62,172.54,8.6939]
[1640998741978,10.4639,172.62,172.52,1.2644]
[1640998742378,10.4639,172.62,172.52,2.69109368]
[1640998742576,10.7239,172.62,172.52,2.69109368]
[1640998743578,10.4639,172.62,172.52,2.69109368]
[1640998743780,9.9639,172.62,172.52,2.69109368]
[1640998743980,10.4639,172.62,172.52,2.69109368]
[1640998744180,9.4639,172.62,172.52,2.69109368]
[1640998744983,9.4639,172.62,172.52,2.95109368]
[1640998745186,9.1938,172.62,172.52,2.95109368]
[1640998745781,10.4267,172.62,172.52,2.95109368]
[1640998745980,10.6867,172.62,172.52,2.95109368]
[1640998746888,10.6867,172.62,172.52,2.69109368]
[1640998757992,10.6867,172.62,172.52,11.38489368]
[1640998758194,10.1867,172.62,172.52,11.38489368]
[1640998758393,10.6867,172.62,172.52,11.38489368]
[1640998760799,10.6867,172.62,172.52,11.64489368]
[1640998762400,10.6867,172.62,172.52,2.69109368]
[1640998763199,10.1867,172.62,172.52,2.69109368]
[1640998763400,10.1867,172.62,172.51,74.0855]
[1640998763604,10.1867,172.62,172.49,1.42669368]
[1640998763925,11.57320784,172.62,172.49,1.42669368]
[1640998764129,11.57320784,172.62,172.38,79.9548]
[1640998764326,16.64953473,172.62,172.4,25.39120991]
[1640998764527,1.63762843,172.59,172.41,157.0602]
[1640998764727,8.6983,172.52,172.41,157.0602]
[1640998764927,9.1983,172.52,172.42,1.42669368]
[1640998765130,9.4583,172.52,172.42,1.42669368]
[1640998765928,9.4583,172.52,172.43,8.6984]
[1640998766128,9.4583,172.52,172.43,9.9235]
[1640998766330,9.4583,172.52,172.43,1.2251]
[1640998766529,9.4583,172.52,172.42,1.42669368]
[1640998766829,9.4583,172.52,172.42,2.65179368]
[1640998767030,9.4583,172.52,172.42,11.61099368]
[1640998767431,10.6873,172.52,172.42,11.61099368]
[1640998768034,10.6873,172.52,172.42,1.42669368]
[1640998768331,10.6873,172.52,172.41,78.4608]
[1640998768531,10.6873,172.52,172.42,1.31]
[1640998769130,10.6873,172.52,172.41,78.4608]
[1640998769735,10.6873,172.52,172.42,1.2493]
[1640998770733,10.6873,172.52,172.41,78.4608]
[1640998772935,10.6873,172.52,172.39,8.7008]
[1640998773137,10.6873,172.52,172.37,1.42669368]
[1640998773138,19.3521,172.52,172.38,1.2222]
[1640998773438,19.3521,172.52,172.39,1.42669368]
[1640998774937,19.3521,172.52,172.4,1.2782]
[1640998776939,19.0921,172.52,172.4,1.2782]
[1640998778142,19.3521,172.52,172.4,9.9785]
[1640998778745,19.3521,172.52,172.4,1.2782]
[1640998783951,20.74093149,172.52,172.4,1.2782]
[1640998784154,19.3521,172.52,172.4,1.2782]
[1640998784953,20.74093149,172.52,172.4,1.2782]
[1640998785354,22.37855992,172.52,172.4,1.2782]
[1640998790174,8.7021,172.46,172.4,1.2782]
[1640998790376,9.2021,172.46,172.4,1.2782]
[1640998790574,9.4621,172.46,172.4,1.2782]
[1640998792578,9.2021,172.46,172.4,1.2782]
[1640998792980,8.7021,172.46,172.4,1.2782]
[1640998793178,9.2021,172.46,172.4,1.2782]
[1640998793577,8.7021,172.46,172.4,1.2782]
[1640998794178,9.2021,172.46,172.4,1.2782]
[1640998797386,8.7021,172.46,172.4,1.2782]
[1640998797991,9.2021,172.46,172.4,1.2782]
[1640998800795,8.7021,172.46,172.4,1.2782]
[1640998801422,9.2021,172.46,172.4,1.2782]
[1640998802699,9.4621,172.46,172.4,1.2782]
[1640998802900,9.4621,172.46,172.37,26.72261886]
[1640998803301,9.4621,172.46,172.38,1.2365]
[1640998804204,9.4621,172.46,172.38,1.4965]
[1640998805001,9.4621,172.46,172.38,1.2365]
[1640998806103,9.4621,172.46,172.39,24.27547592]
[1640998806707,8.7021,172.46,172.39,24.27547592]
[1640998806905,9.2021,172.46,172.38,1.2365]
[1640998807307,9.4621,172.46,172.38,1.2365]
[1640998812938,8.9621,172.46,172.38,1.4965]
[1640998813136,9.2021,172.46,172.38,1.4965]
[1640998817843,0.5,172.46,172.38,1.4965]
[1640998818040,1.63762843,172.51,172.38,1.2365]
[1640998818245,1.63762843,172.51,172.38,2.66319368]
[1640998818541,2.13762843,172.51,172.38,1.2365]
[1640998818744,0.5,172.51,172.38,1.2365]
[1640998818941,8.7003,172.48,172.38,9.9377]
[1640998819344,9.4603,172.48,172.38,9.9377]
[1640998820543,9.4603,172.48,172.38,10.1977]
[1640998821344,9.4603,172.48,172.38,1.2365]
[1640998822645,9.4603,172.48,172.38,9.9383]
[1640998823048,9.4603,172.48,172.38,1.2365]
[1640998824048,8.7023,172.44,172.38,1.2365]
[1640998824251,25.61374276,172.43,172.38,1.2365]
[1640998825248,8.7023,172.44,172.38,1.2365]
[1640998826652,8.7023,172.44,172.38,9.9381]
[1640998826852,8.7023,172.44,172.38,1.2365]
[1640998828155,8.7014,172.46,172.38,10.1982]
[1640998828356,9.2014,172.46,172.38,9.9382]
[1640998828755,9.2014,172.46,172.38,10.1982]
[1640998829356,8.7014,172.46,172.38,10.1982]
[1640998830357,9.2014,172.46,172.38,10.1982]
[1640998830554,8.7014,172.46,172.38,10.1982]
[1640998831455,9.2014,172.46,172.38,10.1982]
[1640998831655,8.7014,172.46,172.38,10.1982]
[1640998831854,9.2014,172.46,172.38,10.1982]
[1640998832659,8.7014,172.46,172.38,10.1982]
[1640998839064,1.285,172.48,172.38,10.1982]
[1640998839266,1.545,172.48,172.38,10.1982]
[1640998839666,0.26,172.48,172.38,10.1982]
[1640998840068,28.83931038,172.49,172.38,10.1982]
[1640998840267,8.7004,172.48,172.38,10.1982]
[1640998840466,9.4604,172.48,172.38,10.1982]
[1640998840869,8.9604,172.48,172.38,10.1982]
[1640998841270,9.4604,172.48,172.38,10.1982]
[1640998843094,10.7613,172.48,172.38,10.1982]
[1640998844397,10.2613,172.48,172.38,10.1982]
[1640998845001,10.7613,172.48,172.38,10.1982]
[1640998845598,10.2613,172.48,172.38,10.1982]
[1640998845998,10.7613,172.48,172.38,10.1982]
[1640998848202,10.7613,172.48,172.38,1.2365]
[1640998848402,10.2613,172.48,172.36,2.6796]
[1640998848600,10.7613,172.48,172.36,2.9396]
[1640998849201,10.7613,172.48,172.37,8.7024]
[1640998849500,10.7613,172.48,172.37,0.26]
[1640998850202,10.7613,172.48,172.36,2.9396]
[1640998851014,10.7613,172.48,172.36,0.26]
[1640998851504,10.7613,172.48,172.33,76.794]
[1640998851705,10.7613,172.48,172.33,1.344]
[1640998852107,10.2613,172.48,172.33,1.344]
[1640998852505,10.2613,172.48,172.34,27.73208069]
[1640998853105,10.2613,172.48,172.34,27.99208069]
[1640998853305,10.2613,172.48,172.35,1.2378]
[1640998853510,10.7613,172.48,172.35,1.4978]
[1640998853806,10.7613,172.48,172.36,8.7025]
[1640998854004,10.7613,172.48,172.36,0.26]
[1640998854208,10.7613,172.48,172.31,30.3292]
[1640998854406,10.7613,172.48,172.32,1.282]
[1640998854806,10.7613,172.48,172.31,8.7054]
[1640998855005,10.7613,172.48,172.3,1.287]
[1640998855006,12.12921921,172.48,172.3,1.287]
[1640998855206,13.76684764,172.48,172.3,1.287]
[1640998856209,1.63762843,172.47,172.3,1.287]
[1640998856410,30.6018527,172.38,172.3,1.287]
[1640998856609,30.8618527,172.38,172.3,1.287]
[1640998856808,31.3618527,172.38,172.3,1.287]
[1640998857010,31.3618527,172.38,172.28,78.7685]
[1640998857212,1.2306,172.37,172.28,78.7685]
[1640998857412,1.7306,172.37,172.27,1.2837]
[1640998857612,1.9906,172.37,172.27,1.5437]
[1640998858112,1.7306,172.37,172.27,1.5437]
[1640998858313,1.7306,172.37,172.27,10.2509]
[1640998858514,1.2306,172.37,172.27,10.2509]
[1640998859216,1.2306,172.37,172.27,11.67759368]
[1640998859717,8.7064,172.36,172.27,11.67759368]
[1640998860514,8.7064,172.36,172.27,11.17759368]
[1640998861115,8.9664,172.36,172.27,11.17759368]
[1640998861916,9.4664,172.36,172.27,11.17759368]
[1640998863419,9.2064,172.36,172.27,11.17759368]
[1640998863818,8.7064,172.36,172.27,10.13389368]
[1640998864019,9.4664,172.36,172.27,10.13389368]
[1640998864218,9.4664,172.36,172.27,8.7072]
[1640998864718,8.9664,172.36,172.27,8.7072]
[1640998864919,9.4664,172.36,172.27,8.7072]
[1640998865420,1.3086,172.35,172.27,8.7072]
[1640998865618,8.7076,172.33,172.27,8.7072]
[1640998866420,1.3086,172.35,172.27,10.13389368]
[1640998866620,1.3086,172.35,172.27,10.39389368]
[1640998866823,8.7071,172.34,172.27,10.39389368]
[1640998867328,8.7071,172.34,172.27,10.13389368]
[1640998867525,8.7071,172.34,172.27,8.7072]
[1640998868321,8.7071,172.34,172.26,8.7082]
[1640998868725,8.60435835,172.34,172.26,8.7082]
[1640998869421,8.60435835,172.34,172.26,8.9682]
[1640998870623,8.86435835,172.34,172.26,8.7082]
[1640998870823,8.86435835,172.34,172.23,29.0243]
[1640998870824,9.36435835,172.34,172.24,8.7089]
[1640998871227,9.36435835,172.34,172.24,1.42669368]
[1640998871423,1.2851,172.33,172.24,1.42669368]
[1640998871629,8.7098,172.29,172.24,1.42669368]
[1640998871824,31.23362888,172.29,172.24,1.42669368]
[1640998872824,31.23362888,172.29,172.23,8.7097]
[1640998873024,31.23362888,172.29,172.23,8.9697]
[1640998873526,31.23362888,172.29,172.23,8.7097]
[1640998874227,22.52382888,172.29,172.23,8.7097]
[1640998875626,31.23342888,172.29,172.23,8.7097]
[1640998876527,31.23342888,172.29,172.23,8.9697]
[1640998876725,22.52382888,172.29,172.23,8.9697]
[1640998879129,22.52382888,172.29,172.23,8.4697]
[1640998879427,22.52382888,172.29,172.23,8.2097]
[1640998879629,31.23362888,172.29,172.23,8.2097]
[1640998881936,31.23362888,172.29,172.22,8.7101]
[1640998882133,37.13562888,172.29,172.2,1.3482]
[1640998882334,1.3515,172.28,172.2,1.3482]
[1640998882533,8.7115,172.26,172.17,74.149]
[1640998882734,8.7115,172.26,172.17,75.4914]
[1640998882934,8.9715,172.26,172.17,75.4914]
[1640998883133,8.9715,172.26,172.17,0.0001]
[1640998883435,9.4715,172.26,172.17,0.0001]
[1640998883832,1.2612,172.25,172.17,0.0001]
[1640998884033,8.7129,172.24,172.17,0.0001]
[1640998884233,2.0212,172.25,172.17,8.7127]
[1640998884636,1.5212,172.25,172.17,8.7127]
[1640998888947,1.5212,172.25,172.18,29.27129913]
[1640998889548,1.5212,172.25,172.17,0.0001]
[1640998889948,2.0212,172.25,172.17,0.0001]
[1640998890152,1.5212,172.25,172.17,0.0001]
[1640998890448,2.0212,172.25,172.17,0.0001]
[1640998892566,1.2612,172.25,172.17,0.0001]
[1640998892767,1.2612,172.25,172.17,8.713]
[1640998894876,1.2612,172.25,172.17,0.0001]
[1640998895072,1.5212,172.25,172.17,0.0001]
[1640998895472,1.7612,172.25,172.17,0.0001]
[1640998895772,1.2612,172.25,172.17,8.7129]
[1640998895974,1.7612,172.25,172.17,8.7129]
[1640998897072,2.0212,172.25,172.17,8.7129]
[1640998897673,2.0212,172.25,172.17,0.0001]
[1640998898574,10.7343,172.25,172.17,0.0001]
[1640998898773,2.0212,172.25,172.17,0.0001]
[1640998899175,1.5212,172.25,172.17,0.0001]
[1640998899374,2.0212,172.25,172.17,0.0001]
[1640998899778,31.75386678,172.24,172.17,0.0001]
[1640998900077,0.76,172.24,172.17,0.0001]
[1640998900276,0.26,172.24,172.17,0.0001]
[1640998900476,0.5,172.25,172.17,0.0001]
[1640998900878,1.8435,172.27,172.17,0.0001]
[1640998901180,29.65217768,172.25,172.17,0.0001]
[1640998901379,30.15217768,172.25,172.17,0.0001]
[1640998901576,30.41217768,172.25,172.17,0.0001]
[1640998901976,1.2791,172.24,172.17,0.0001]
[1640998902377,2.0391,172.24,172.17,0.0001]
[1640998902579,1.5391,172.24,172.17,0.0001]
[1640998902781,2.0391,172.24,172.17,0.0001]
[1640998906380,1.5391,172.24,172.17,0.0001]
[1640998906579,2.0391,172.24,172.17,0.0001]
[1640998908883,1.5391,172.24,172.17,0.0001]
[1640998909084,1.2791,172.24,172.17,0.0001]
[1640998909285,1.7791,172.24,172.17,0.0001]
[1640998909885,1.2791,172.24,172.17,0.0001]
[1640998910086,1.7791,172.24,172.17,0.0001]
[1640998910491,2.0391,172.24,172.17,0.0001]
[1640998917196,1.5391,172.24,172.17,0.0001]
[1640998917396,2.0391,172.24,172.17,0.0001]
[1640998919118,10.7543,172.24,172.17,0.0001]
[1640998921120,12.1179249,172.24,172.17,0.0001]
[1640998921917,89.8722249,172.24,172.17,0.0001]
[1640998923319,88.2486,172.24,172.17,0.0001]
[1640998923918,89.61003471,172.24,172.17,0.0001]
[1640998924519,1.63762843,172.23,172.17,0.0001]
[1640998924820,8.7166,172.2,172.17,0.0001]
[1640998925020,0.26,172.2,172.17,0.0001]
[1640998925224,6.06439994,172.19,172.17,0.0001]
[1640998925623,6.32439994,172.19,172.17,0.0001]
[1640998927824,8.18583465,172.19,172.17,0.0001]
[1640998928022,146.8729,172.18,172.17,0.0001]
[1640998928224,149.3748,172.18,172.17,0.0001]
[1640998928425,151.49623471,172.18,172.17,0.0001]
[1640998928826,170.09829077,172.18,172.01,1.2831]
[1640998929023,26.05186279,172.17,172.01,1.2831]
[1640998929424,1.36143471,172.16,172.01,1.2831]
[1640998929826,2.12143471,172.16,172.01,1.2831]
[1640998930028,8.7211,172.09,172.01,1.2831]
[1640998930227,8.7211,172.09,172.01,24.23258308]
[1640998930427,0.26,172.09,172.01,24.23258308]
[1640998931126,30.99695765,172.1,172.01,24.23258308]
[1640998931729,39.71725765,172.1,172.01,32.95308308]
[1640998932129,39.45725765,172.1,172.01,32.95308308]
[1640998932330,30.23695765,172.1,172.01,32.95308308]
[1640998932531,30.23695765,172.1,172.01,10.0036]
[1640998932729,30.23695765,172.1,172.01,9.5036]
[1640998933533,30.23695765,172.1,172.01,8.7205]
[1640998933733,38.95705765,172.1,171.94,29.0717]
[1640998934133,1.36143471,172.09,171.89,77.2473]
[1640998934333,29.0803,172.06,171.9,79.4107]
[1640998934533,27.63517253,172.05,171.91,29.97512195]
[1640998934935,28.39517253,172.05,171.91,29.97512195]
[1640998935237,8.7233,172.04,171.9,78.1064]
[1640998935435,8.7233,172.04,171.91,1.3546]
[1640998935834,2.79941191,172.08,171.91,1.3546]
[1640998936038,1.3131,172.08,171.91,1.6146]
[1640998936235,8.7229,172.04,171.97,8.7226]
[1640998936635,8.7229,172.04,171.92,29.0751]
[1640998936834,25.1384686,172.03,171.92,1.2851]
[1640998937235,34.1218686,172.03,171.96,8.7232]
[1640998937435,8.9834,172.03,171.96,8.7232]
[1640998938835,8.9834,172.03,171.95,8.7237]
[1640998939834,14.7744,172.03,171.95,8.7237]
[1640998940035,14.7744,172.03,171.92,1.2851]
[1640998940436,14.7744,172.03,171.9,78.1064]
[1640998940839,14.7744,172.03,171.92,24.53628888]
[1640998941039,8.9834,172.03,171.94,8.7238]
[1640998941246,9.4834,172.03,171.94,8.7238]
[1640998942538,9.4834,172.03,171.93,10.0116]
[1640998944040,9.2234,172.03,171.93,10.0116]
[1640998944341,9.2234,172.03,171.93,8.7247]
[1640998945342,9.4834,172.03,171.93,8.7247]
[1640998947647,9.4834,172.03,171.92,1.3436]
[1640998948447,8.7253,171.99,171.92,1.3436]
[1640998948850,8.7253,171.99,171.92,1.6036]
[1640998949248,31.62121302,172.01,171.92,10.3289]
[1640998949448,31.62121302,172.01,171.92,41.48388638]
[1640998949849,29.0843,172.04,171.92,41.48388638]
[1640998950052,29.0792,172.06,171.92,46.62288638]
[1640998950250,1.3072,172.07,171.92,46.62288638]
[1640998950450,2.75251191,172.09,171.92,46.62288638]
[1640998950649,1.48631191,172.09,171.92,48.04958006]
[1640998950850,23.41931504,172.07,171.92,48.04958006]
[1640998951251,1.48631191,172.11,171.92,48.04958006]
[1640998951471,1.2655,172.12,171.92,62.94278041]
[1640998951873,1.2655,172.12,171.92,62.68278041]
[1640998952073,8.721,172.08,171.92,48.42323627]
[1640998952273,24.1839965,172.07,171.92,48.42323627]
[1640998952471,24.4439965,172.07,171.92,48.42323627]
[1640998953275,24.1839965,172.07,171.92,48.42323627]
[1640998953475,24.4439965,172.07,171.92,48.42323627]
[1640998954080,24.1839965,172.07,171.92,48.42323627]
[1640998954283,24.1839965,172.07,171.92,48.68323627]
[1640998954681,1.2655,172.12,171.92,48.18323627]
[1640998955383,2.0255,172.12,171.92,48.18323627]
[1640998955581,8.7213,172.08,171.92,48.18323627]
[1640998955781,23.11472339,172.07,171.92,42.41058006]
[1640998955980,23.87472339,172.07,171.92,42.41058006]
[1640998956382,23.87472339,172.07,171.92,42.15058006]
[1640998956584,23.37472339,172.07,171.92,42.15058006]
[1640998957382,23.87472339,172.07,171.92,42.15058006]
[1640998957686,23.11472339,172.07,171.92,42.15058006]
[1640998957884,1.3272,172.1,171.92,47.92323627]